fUSD/lending_fUSD_20250623
["ID","MTS","AMOUNT","RATE_DAILY","PERIOD"]
[367116635,1750662740281,-490.0,0.0003041,3]
[367116636,1750662740290,-763.59,0.0003041,3]
[367116637,1750662740299,-490.0,0.0003041,3]
[367116638,1750662740309,-1171.08,0.0003041,3]
[367116639,1750662740318,-490.0,0.0003041,3]
[367116640,1750662740328,-806.32,0.0003041,3]
[367116641,1750662740337,-490.0,0.0003041,3]
[367116642,1750662740347,-1313.3,0.0003041,3]
[367116643,1750662740356,-490.0,0.0003041,3]
[367116644,1750662740366,-1866.63,0.0003041,3]
[367116645,1750662740375,-783.39,0.0003041,3]
[367116646,1750662740385,-1408.5,0.0003041,3]
[367116647,1750662740395,-760.51,0.0003041,3]
[367116648,1750662740404,-640.07,0.0003041,3]
[367116649,1750662740414,-1113.91,0.0003041,3]
[367116650,1750662740423,-1615.12,0.0003041,3]
[367116651,1750662740432,-1204.57,0.0003041,3]
[367116652,1750662740442,-490.0,0.0003041,3]
[367116653,1750662740451,-852.31,0.0003041,3]
[367116654,1750662740460,-1617.57,0.0003041,3]
[367116655,1750662740469,-1344.16,0.0003041,3]
[367116656,1750662740478,-1189.28,0.0003041,3]
[367116657,1750662740487,-490.0,0.0003041,3]
[367116658,1750662740497,-924.24,0.0003041,3]
[367116659,1750662740506,-1017.87,0.0003041,3]
[367116660,1750662740516,-1327.65,0.0003041,3]
[367116661,1750662740528,-490.0,0.0003041,3]
[367116662,1750662740537,-816.97,0.0003041,3]
[367116663,1750662740547,-1505.21,0.0003041,3]
[367116664,1750662740556,-490.0,0.0003041,3]
[367116665,1750662740567,-1444.07,0.0003041,3]
[367116666,1750662740576,-490.0,0.0003041,3]
[367116667,1750662740586,-490.0,0.0003041,3]
[367116668,1750662740595,-995.43,0.0003041,3]
[367116669,1750662740606,-490.0,0.0003041,3]
[367116670,1750662740615,-3010.94,0.0003041,2]
[367116671,1750662740624,-1097.45,0.0003041,3]
[367116672,1750662740633,-753.53,0.0003041,3]
[367116673,1750662740643,-1037.06,0.0003041,3]
[367116674,1750662740653,-1995.53,0.0003041,3]
[367116675,1750662740663,-490.0,0.0003041,3]
[367116676,1750662740673,-660.48,0.0003041,3]
[367116677,1750662740682,-752.2,0.0003041,3]
[367116678,1750662740691,-1341.44,0.0003041,3]
[367116679,1750662740700,-850.05,0.0003041,3]
[367116680,1750662740709,-271.1717347,0.0003041,3]
[367116681,1750662740718,-507.29,0.0003041,3]
[367116682,1750662740728,-581.79,0.0003041,3]
[367116683,1750662740737,-2153.23,0.0003041,3]
[367116684,1750662740747,-557.61,0.0003041,3]
[367116685,1750662740756,-572.59,0.0003041,3]
[367116686,1750662740766,-490.0,0.0003041,3]
[367116687,1750662740776,-490.0,0.0003041,3]
[367116688,1750662740785,-2413.05,0.0003041,3]
[367116689,1750662740795,-490.0,0.0003041,3]
[367116690,1750662740806,-566.43,0.0003041,3]
[367116691,1750662740816,-1348.78,0.0003041,3]
[367116692,1750662740826,-2316.4,0.0003041,3]
[367116693,1750662740835,-1609.27,0.0003041,3]
[367116694,1750662740845,-490.0,0.0003041,3]
[367116695,1750662740859,-569.99,0.0003041,3]
[367116696,1750662740870,-490.0,0.0003041,3]
[367116697,1750662740879,-490.0,0.0003041,3]
[367116698,1750662740889,-861.6,0.0003041,3]
[367116699,1750662740899,-490.0,0.0003041,3]
[367116700,1750662740909,-2663.87,0.0003041,3]
[367116701,1750662740920,-731.27,0.0003041,3]
[367116702,1750662740930,-560.0,0.0003041,3]
[367116703,1750662740942,-1117.5,0.0003041,3]
[367116704,1750662740955,-921.04,0.0003041,3]
[367116705,1750662740966,-783.55,0.0003041,3]
[367116706,1750662740977,-600.11,0.0003041,3]
[367116707,1750662740987,-1052.0,0.0003041,3]
[367116708,1750662740997,-490.0,0.0003041,3]
[367116709,1750662741007,-785.27,0.0003041,3]
[367116710,1750662741018,-1688.41,0.0003041,3]
[367116711,1750662741028,-595.61,0.0003041,3]
[367116712,1750662741037,-950.58,0.0003041,3]
[367116713,1750662741047,-1953.41,0.0003041,3]
[367116714,1750662741057,-1726.17,0.0003041,3]
[367116715,1750662741067,-523.44,0.0003041,3]
[367116716,1750662741077,-603.07,0.0003041,3]
[367116717,1750662741087,-1456.32,0.0003041,3]
[367116718,1750662741097,-1698.32,0.0003041,3]
[367116719,1750662741107,-490.0,0.0003041,3]
[367116720,1750662741117,-490.0,0.0003041,3]
[367116721,1750662741128,-490.0,0.0003041,3]
[367116722,1750662741139,-1007.06,0.0003041,3]
[367116723,1750662741149,-1681.01,0.0003041,3]
[367116724,1750662741159,-490.0,0.0003041,3]
[367116725,1750662741169,-1708.4,0.0003041,3]
[367116726,1750662741178,-873.29,0.0003041,3]
[367116727,1750662741188,-1098.59,0.0003041,3]
[367116728,1750662741198,-1944.53,0.0003041,3]
[367116729,1750662741208,-490.0,0.0003041,3]
[367116730,1750662741218,-2433.81,0.0003041,3]
[367116731,1750662741228,-501.38,0.0003041,3]
[367116732,1750662741237,-577.0,0.0003041,3]
[367116733,1750662741247,-750.42,0.0003041,3]
[367116734,1750662741256,-662.45,0.0003041,3]
[367116735,1750662741266,-490.0,0.0003041,3]
[367116736,1750662741276,-1247.14,0.0003041,3]
[367116737,1750662741286,-1551.77,0.0003041,3]
[367116738,1750662741296,-1650.44,0.0003041,3]
[367116739,1750662741306,-703.59,0.0003041,3]
[367116740,1750662741316,-529.91,0.0003041,3]
[367116741,1750662741326,-490.0,0.0003041,3]
[367116742,1750662741336,-490.0,0.0003041,3]
[367116743,1750662741346,-788.62,0.0003041,3]
[367116744,1750662741357,-912.47,0.0003041,3]
[367116745,1750662741367,-1251.29,0.0003041,3]
[367116746,1750662741376,-490.0,0.0003041,3]
[367116747,1750662741386,-655.66,0.0003041,3]
[367116748,1750662741399,-675.57,0.0003041,3]
[367116749,1750662741409,-300.0,0.0003041,3]
[367116750,1750662741419,-1664.2,0.0003041,3]
[367116751,1750662741429,-1679.9,0.0003041,3]
[367116752,1750662741439,-217.46761639,0.0003041,3]
[367116753,1750662741449,-1433.27,0.0003041,3]
[367116754,1750662741459,-1066.4,0.0003041,3]
[367116755,1750662741469,-490.0,0.0003041,3]
[367116756,1750662741479,-572.95,0.0003041,3]
[367116757,1750662741489,-490.0,0.0003041,3]
[367116758,1750662741499,-1605.51,0.0003041,3]
[367116759,1750662741509,-1690.95,0.0003041,3]
[367116760,1750662741521,-490.0,0.0003041,3]
[367116761,1750662741533,-490.0,0.0003041,3]
[367116762,1750662741543,-1674.28,0.0003041,3]
[367116763,1750662741553,-159.22925544,0.0003041,3]
[367116764,1750662741563,-638.77,0.0003041,3]
[367116765,1750662741574,-1574.11,0.0003041,3]
[367116766,1750662741584,-378.81,0.0003041,3]
[367116767,1750662741595,-684.38,0.0003041,3]
[367116768,1750662741604,-1278.36,0.0003041,3]
[367116769,1750662741614,-905.6,0.0003041,3]
[367116770,1750662741625,-1682.39,0.0003041,3]
[367116771,1750662741635,-1126.22,0.0003041,3]
[367116772,1750662741647,-1410.38,0.0003041,3]
[367116773,1750662741657,-1883.69,0.0003041,3]
[367116774,1750662741667,-7415.21,0.0003041,3]
[367116775,1750662741679,-2332.56,0.0003041,3]
[367116776,1750662741689,-490.0,0.0003041,3]
[367116777,1750662741700,-1248.93,0.0003041,3]
[367116778,1750662741710,-1449.04,0.0003041,3]
[367116779,1750662741721,-849.69,0.0003041,3]
[367116780,1750662741731,-883.32,0.0003041,3]
[367116781,1750662741741,-587.88,0.0003041,3]
[367116782,1750662741751,-901.3,0.0003041,3]
[367116783,1750662741762,-1164.04,0.0003041,3]
[367116784,1750662741772,-219.76876666,0.0003041,3]
[367116785,1750662741782,-1753.14,0.0003041,3]
[367116786,1750662741793,-10399.38,0.0003041,3]
[367116787,1750662741803,-4073.96,0.0003041,3]
[367116788,1750662741813,-580.67,0.0003041,3]
[367116789,1750662741824,-1448.46,0.0003041,3]
[367116790,1750662741834,-836.73,0.0003041,3]
[367116791,1750662741844,-918.93,0.0003041,3]
[367116792,1750662741854,-1355.08,0.0003041,3]
[367116793,1750662741864,-526.35,0.0003041,3]
[367116794,1750662741875,-6824.52,0.0003041,3]
[367116795,1750662741885,-1900.51,0.0003041,3]
[367116796,1750662741899,-1016.76,0.0003041,3]
[367116797,1750662741909,-3401.6,0.0003041,3]
[367116798,1750662741919,-3966.47,0.0003041,3]
[367116799,1750662741929,-490.0,0.0003041,3]
[367116800,1750662741939,-490.0,0.0003041,3]
[367116801,1750662741949,-909.73,0.0003041,3]
[367116802,1750662741959,-490.0,0.0003041,3]
[367116803,1750662741970,-608.52,0.0003041,3]
[367116804,1750662741980,-934.07,0.0003041,3]
[367116805,1750662741990,-4949.36,0.0003041,3]
[367116806,1750662742000,-2915.88,0.0003041,3]
[367116807,1750662742010,-490.0,0.0003041,3]
[367116808,1750662742020,-1741.72,0.0003041,3]
[367116809,1750662742031,-1585.93,0.0003041,3]
[367116810,1750662742041,-490.0,0.0003041,3]
[367116811,1750662742051,-490.0,0.0003041,3]
[367116812,1750662742061,-18062.45,0.0003041,3]
[367116813,1750662742071,-814.19,0.0003041,3]
[367116814,1750662742081,-3468.99,0.0003041,3]
[367116815,1750662742091,-1570.58,0.0003041,3]
[367116816,1750662742102,-1672.97,0.0003041,3]
[367116817,1750662742113,-798.22,0.0003041,3]
[367116818,1750662742123,-789.6,0.0003041,3]
[367116819,1750662742134,-1533.06,0.0003041,3]
[367116820,1750662742146,-1681.4,0.0003041,3]
[367116821,1750662742157,-490.0,0.0003041,3]
[367116822,1750662742167,-528.64,0.0003041,3]
[367116823,1750662742178,-1108.02,0.0003041,3]
[367116824,1750662742188,-1980.76,0.0003041,3]
[367116825,1750662742198,-2594.4,0.0003041,3]
[367116826,1750662742208,-490.0,0.0003041,3]
[367116827,1750662742219,-1623.55,0.0003041,3]
[367116828,1750662742229,-490.0,0.0003041,3]
[367116829,1750662742239,-891.21,0.0003041,3]
[367116830,1750662742249,-1019.18,0.0003041,3]
[367116831,1750662742259,-1174.99,0.0003041,3]
[367116832,1750662742270,-3127.29,0.0003041,3]
[367116833,1750662742280,-1569.21,0.0003041,3]
[367116834,1750662742290,-490.0,0.0003041,3]
[367116835,1750662742300,-1940.59,0.0003041,3]
[367116836,1750662742311,-2329.34,0.0003041,3]
[367116837,1750662742322,-664.92,0.0003041,3]
[367116838,1750662742332,-1830.85,0.0003041,3]
[367116839,1750662742342,-1700.21,0.0003041,3]
[367116840,1750662742352,-2769.81,0.0003041,3]
[367116841,1750662742362,-490.0,0.0003041,3]
[367116842,1750662742373,-6713.02,0.0003041,3]
[367116843,1750662742383,-777.56,0.0003041,3]
[367116844,1750662742395,-490.0,0.0003041,3]
[367116845,1750662742406,-826.09,0.0003041,3]
[367116846,1750662742416,-2394.73,0.0003041,3]
[367116847,1750662742426,-490.0,0.0003041,3]
[367116848,1750662742436,-1294.78,0.0003041,3]
[367116849,1750662742447,-1749.09,0.0003041,3]
[367116850,1750662742456,-760.04,0.0003041,3]
[367116851,1750662742467,-490.0,0.0003041,3]
[367116852,1750662742477,-555.71,0.0003041,3]
[367116853,1750662742487,-1626.24,0.0003041,3]
[367116854,1750662742497,-713.4,0.0003041,3]
[367116855,1750662742506,-4056.64,0.0003041,3]
[367116856,1750662742516,-490.0,0.0003041,3]
[367116857,1750662742530,-1498.64,0.0003041,3]
[367116858,1750662742539,-1457.21,0.0003041,3]
[367116859,1750662742549,-490.0,0.0003041,3]
[367116860,1750662742559,-737.54,0.0003041,3]
[367116861,1750662742570,-1307.83,0.0003041,3]
[367116862,1750662742580,-728.06,0.0003041,3]
[367116863,1750662742590,-490.0,0.0003041,3]
[367116864,1750662742600,-1832.35,0.0003041,3]
[367116865,1750662742610,-1380.67,0.0003041,3]
[367116866,1750662742620,-2228.14,0.0003041,3]
[367116867,1750662742630,-2372.02,0.0003041,3]
[367116868,1750662742640,-490.0,0.0003041,3]
[367116869,1750662742650,-3318.96,0.0003041,3]
[367116870,1750662742660,-709.01,0.0003041,3]
[367116871,1750662742670,-862.45,0.0003041,3]
[367116872,1750662742680,-788.8,0.0003041,3]
[367116873,1750662742691,-1200.13,0.0003041,3]
[367116874,1750662742700,-1916.86,0.0003041,3]
[367116875,1750662742710,-678.77,0.0003041,3]
[367116876,1750662742719,-4654.08,0.0003041,3]
[367116877,1750662742729,-1366.52,0.0003041,3]
[367116878,1750662742739,-515.04,0.0003041,3]
[367116879,1750662742748,-788.62,0.0003041,3]
[367116880,1750662742759,-553.78,0.0003041,3]
[367116881,1750662742768,-1578.33,0.0003041,3]
[367116882,1750662742777,-1107.26,0.0003041,3]
[367116883,1750662742787,-498.97,0.0003041,3]
[367116884,1750662742796,-7394.17,0.0003041,3]
[367116885,1750662742806,-1624.99,0.0003041,3]
[367116886,1750662742815,-490.0,0.0003041,3]
[367116887,1750662742826,-500.0,0.0003041,3]
[367116888,1750662742835,-490.0,0.0003041,3]
[367116889,1750662742845,-2834.49,0.0003041,3]
[367116890,1750662742855,-1036.64,0.0003041,3]
[367116891,1750662742865,-12536.04,0.0003041,3]
[367116892,1750662742875,-3543.99,0.0003041,3]
[367116893,1750662742884,-1768.62,0.0003041,3]
[367116894,1750662742895,-497.45,0.0003041,3]
[367116895,1750662742905,-490.0,0.0003041,3]
[367116896,1750662742915,-1619.96,0.0003041,3]
[367116897,1750662742925,-510.41,0.0003041,3]
[367116898,1750662742936,-9852.89,0.0003041,3]
[367116899,1750662742946,-5190.35,0.0003041,3]
[367116900,1750662742956,-490.0,0.0003041,3]
[367116901,1750662743266,-1552.44,0.0003041,3]
[367116902,1750662743277,-814.87,0.0003041,3]
[367116903,1750662743287,-2783.14,0.0003041,3]
[367116904,1750662743297,-1947.91,0.0003041,3]
[367116905,1750662743307,-510.26,0.0003041,3]
[367116906,1750662743316,-1717.08,0.0003041,3]
[367116907,1750662743327,-490.0,0.0003041,3]
[367116908,1750662743336,-2330.84,0.0003041,3]
[367116909,1750662743346,-1630.26,0.0003041,3]
[367116910,1750662743356,-752.02,0.0003041,3]
[367116911,1750662743366,-490.0,0.0003041,3]
[367116912,1750662743375,-1618.67,0.0003041,3]
[367116913,1750662743385,-490.0,0.0003041,3]
[367116914,1750662743395,-1776.65,0.0003041,3]
[367116915,1750662743405,-915.84,0.0003041,3]
[367116916,1750662743415,-1151.97,0.0003041,3]
[367116917,1750662743425,-670.37,0.0003041,3]
[367116918,1750662743435,-3986.65,0.0003041,3]
[367116919,1750662743445,-1591.01,0.0003041,3]
[367116920,1750662743455,-1960.82,0.0003041,3]
[367116921,1750662743465,-6065.53,0.0003041,3]
[367116922,1750662743474,-1605.38,0.0003041,3]
[367116923,1750662743484,-1642.63,0.0003041,3]
[367116924,1750662743495,-798.12,0.0003041,3]
[367116925,1750662743505,-1292.66,0.0003041,3]
[367116926,1750662743515,-2292.5,0.0003041,3]
[367116927,1750662743527,-2903.63,0.0003041,3]
[367116928,1750662743539,-1562.1,0.0003041,3]
[367116929,1750662743550,-4219.23,0.0003041,3]
[367116930,1750662743560,-765.43,0.0003041,3]
[367116931,1750662743570,-1872.32,0.0003041,3]
[367116932,1750662743581,-3240.53,0.0003041,3]
[367116933,1750662743591,-492.32,0.0003041,3]
[367116934,1750662743601,-1684.89,0.0003041,3]
[367116935,1750662743611,-1499.13,0.0003041,3]
[367116936,1750662743622,-1822.31,0.0003041,3]
[367116937,1750662743633,-2262.37,0.0003041,3]
[367116938,1750662743644,-490.0,0.0003041,3]
[367116939,1750662743654,-745.32,0.0003041,3]
[367116940,1750662743664,-490.0,0.0003041,3]
[367116941,1750662743673,-1565.33,0.0003041,3]
[367116942,1750662743683,-3248.59,0.0003041,3]
[367116943,1750662743693,-1599.78,0.0003041,3]
[367116944,1750662743703,-1190.83,0.0003041,3]
[367116945,1750662743712,-795.18,0.0003041,3]
[367116946,1750662743723,-638.67,0.0003041,3]
[367116947,1750662743734,-8785.1,0.0003041,3]
[367116948,1750662743743,-849.6,0.0003041,3]
[367116949,1750662743753,-1583.66,0.0003041,3]
[367116950,1750662743763,-1787.94,0.0003041,3]
[367116951,1750662743773,-1335.88,0.0003041,3]
[367116952,1750662743782,-1444.68,0.0003041,3]
[367116953,1750662743792,-948.02,0.0003041,3]
[367116954,1750662743802,-490.0,0.0003041,3]
[367116955,1750662743811,-507.9,0.0003041,3]
[367116956,1750662743821,-3963.91,0.0003041,3]
[367116957,1750662743831,-1578.99,0.0003041,3]
[367116958,1750662743841,-1445.82,0.0003041,3]
[367116959,1750662743851,-1285.59,0.0003041,3]
[367116960,1750662743861,-490.0,0.0003041,3]
[367116961,1750662743871,-490.0,0.0003041,3]
[367116962,1750662743881,-490.0,0.0003041,3]
[367116963,1750662743891,-728.45,0.0003041,3]
[367116964,1750662743901,-806.96,0.0003041,3]
[367116965,1750662743911,-1797.81,0.0003041,3]
[367116966,1750662743920,-1831.64,0.0003041,3]
[367116967,1750662743929,-1432.05,0.0003041,3]
[367116968,1750662743939,-919.07,0.0003041,3]
[367116969,1750662743949,-490.0,0.0003041,3]
[367116970,1750662743959,-14900.62,0.0003041,3]
[367116971,1750662743969,-1833.67,0.0003041,3]
[367116972,1750662743978,-2078.39,0.0003041,3]
[367116973,1750662743988,-510.45,0.0003041,3]
[367116974,1750662743998,-490.0,0.0003041,3]
[367116975,1750662744008,-4833.93,0.0003041,3]
[367116976,1750662744017,-1601.31,0.0003041,3]
[367116977,1750662744027,-759.06,0.0003041,3]
[367116978,1750662744036,-873.41,0.0003041,3]
[367116979,1750662744046,-4669.42,0.0003041,3]
[367116980,1750662744055,-791.68,0.0003041,3]
[367116981,1750662744065,-1693.53,0.0003041,3]
[367116982,1750662744075,-990.18,0.0003041,3]
[367116983,1750662744085,-1034.99,0.0003041,3]
[367116984,1750662744095,-1620.6,0.0003041,3]
[367116985,1750662744104,-1653.45,0.0003041,3]
[367116986,1750662744115,-1389.7,0.0003041,3]
[367116987,1750662744124,-3451.15,0.0003041,3]
[367116988,1750662744134,-490.0,0.0003041,3]
[367116989,1750662744144,-2416.24,0.0003041,3]
[367116990,1750662744154,-993.54,0.0003041,3]
[367116991,1750662744164,-566.41,0.0003041,3]
[367116992,1750662744174,-11090.94,0.0003041,3]
[367116993,1750662744183,-1221.42,0.0003041,3]
[367116994,1750662744193,-1799.28,0.0003041,3]
[367116995,1750662744203,-1701.67,0.0003041,3]
[367116996,1750662744212,-2070.18,0.0003041,3]
[367116997,1750662744223,-1378.47,0.0003041,3]
[367116998,1750662744232,-1087.15,0.0003041,3]
[367116999,1750662744242,-1736.17,0.0003041,3]
[367117000,1750662744252,-536.88739154,0.0003041,3]
[367117001,1750662744261,-1816.97,0.0003041,3]
[367117002,1750662744271,-1834.95,0.0003041,3]
[367117003,1750662744282,-709.09,0.0003041,3]
[367117004,1750662744292,-490.0,0.0003041,3]
[367117005,1750662744302,-1672.0,0.0003041,3]
[367117006,1750662744312,-1571.12,0.0003041,3]
[367117007,1750662744322,-1351.61,0.0003041,3]
[367117008,1750662744332,-490.0,0.0003041,3]
[367117009,1750662744342,-490.0,0.0003041,3]
[367117010,1750662744351,-4884.01,0.0003041,3]
[367117011,1750662744361,-1729.07,0.0003041,3]
[367117012,1750662744371,-8073.75,0.0003041,3]
[367117013,1750662744380,-1652.26,0.0003041,3]
[367117014,1750662744390,-718.8,0.0003041,3]
[367117015,1750662744400,-610.0,0.0003041,3]
[367117016,1750662744409,-867.32,0.0003041,3]
[367117017,1750662744419,-30050.84,0.0003041,3]
[367117018,1750662744429,-490.0,0.0003041,3]
[367117019,1750662744438,-1482.76,0.0003041,3]
[367117020,1750662744448,-1513.2,0.0003041,3]
[367117021,1750662744458,-1869.9,0.0003041,3]
[367117022,1750662744467,-825.47,0.0003041,3]
[367117023,1750662744477,-1291.21,0.0003041,3]
[367117024,1750662744487,-490.0,0.0003041,3]
[367117025,1750662744497,-529.57,0.0003041,3]
[367117026,1750662744506,-1000.93,0.0003041,3]
[367117027,1750662744517,-1013.98,0.0003041,2]
[367117028,1750662744531,-749.71,0.0003041,3]
[367117029,1750662744542,-2626.45,0.0003041,3]
[367117030,1750662744552,-1301.95,0.0003041,3]
[367117031,1750662744562,-914.97,0.0003041,3]
[367117032,1750662744572,-5331.91,0.0003041,3]
[367117033,1750662744582,-6188.74,0.0003041,3]
[367117034,1750662744591,-2204.74,0.0003041,3]
[367117035,1750662744604,-733.17,0.0003041,3]
[367117036,1750662744614,-742.07,0.0003041,3]
[367117037,1750662744627,-1553.91,0.0003041,3]
[367117038,1750662744636,-1201.89,0.0003041,3]
[367117039,1750662744648,-5637.09,0.0003041,3]
[367117040,1750662744657,-866.05,0.0003041,3]
[367117041,1750662744667,-716.87,0.0003041,3]
[367117042,1750662744677,-490.0,0.0003041,3]
[367117043,1750662744687,-2465.19,0.0003041,3]
[367117044,1750662744697,-1651.87,0.0003041,3]
[367117045,1750662744707,-1607.85,0.0003041,3]
[367117046,1750662744717,-572.05,0.0003041,3]
[367117047,1750662744727,-1906.99,0.0003041,3]
[367117048,1750662744736,-1536.26,0.0003041,3]
[367117049,1750662744746,-2965.58,0.0003041,3]
[367117050,1750662744756,-1920.56,0.0003041,3]
[367117051,1750662744765,-1131.73,0.0003041,3]
[367117052,1750662744775,-764.72,0.0003041,3]
[367117053,1750662744784,-594.04,0.0003041,3]
[367117054,1750662744794,-490.0,0.0003041,3]
[367117055,1750662744804,-1385.46,0.0003041,3]
[367117056,1750662744814,-235317.34417172,0.0003041,2]
[367117057,1750662744823,-235317.34417172,0.0003041,2]
[367117058,1750662744833,-235317.34417172,0.0003041,2]
[367117059,1750662744842,-1786.12502223,0.0003041,2]
[367117060,1750662744852,-1786.12502223,0.0003041,2]
[367117061,1750662744863,-211.0,0.0003044,2]
[367117062,1750662744873,-522.35391255,0.00030447,2]
[367117063,1750662744883,-522.35391255,0.00030447,2]
[367117064,1750662744893,-174.61919141,0.00030457,2]
[367117065,1750662744903,-773.2413689,0.00030457,2]
[367117066,1750662744914,-239.84119403,0.00030457,2]
[367117067,1750662744925,-200.0,0.00030459,2]
[367117068,1750662744935,-201.3339867,0.00030466,30]
[367117069,1750662744946,-1258.03765544,0.00030486,23]
[367117070,1750662744956,-151.3,0.00030545,3]
[367117071,1750662744966,-201.3339867,0.00030603,30]
[367117072,1750662744976,-5455.753665,0.00030684,3]
[367117073,1750662744986,-151.476984,0.00030684,3]
[367117074,1750662744995,-906.91,0.00030684,3]
[367117075,1750662745005,-490.0,0.00030684,3]
[367117076,1750662745015,-490.0,0.00030684,3]
[367117077,1750662745025,-733.39,0.00030684,3]
[367117078,1750662745034,-490.0,0.00030684,3]
[367117079,1750662745044,-628.6507772,0.00030684,3]
[367117080,1750662745053,-490.0,0.00030684,3]
[367117081,1750662745063,-461.59607851,0.00030684,3]
[367117082,1750662745072,-252.921479,0.00030684,3]
[367117083,1750662745082,-164.978307,0.00030684,3]
[367117084,1750662745092,-958.78,0.00030684,3]
[367117085,1750662745101,-972.11,0.00030684,3]
[367117086,1750662745111,-490.0,0.00030684,3]
[367117087,1750662745120,-2591.829598,0.00030684,3]
[367117088,1750662745130,-615.11,0.00030684,3]
[367117089,1750662745140,-804.23,0.00030684,3]
[367117090,1750662745149,-490.0,0.00030684,3]
[367117091,1750662745159,-490.0,0.00030684,3]
[367117092,1750662745169,-490.0,0.00030684,3]
[367117093,1750662745179,-527.44461191,0.00030684,3]
[367117094,1750662745189,-1075.31,0.00030684,3]
[367117095,1750662745198,-811.41,0.00030684,3]
[367117096,1750662745207,-663.45,0.00030684,3]
[367117097,1750662745217,-490.0,0.00030684,3]
[367117098,1750662745226,-695.49,0.00030684,3]
[367117099,1750662745236,-490.0,0.00030684,3]
[367117100,1750662745246,-977.66,0.00030684,3]
[367117101,1750662745255,-833.21,0.00030684,3]
[367117102,1750662745265,-591.25,0.00030684,3]
[367117103,1750662745275,-690.16,0.00030684,3]
[367117104,1750662745284,-1109.36,0.00030684,3]
[367117105,1750662745294,-490.0,0.00030684,3]
[367117106,1750662745303,-526.92,0.00030684,3]
[367117107,1750662745313,-519.11,0.00030684,3]
[367117108,1750662745322,-490.0,0.00030684,3]
[367117109,1750662745331,-970.12,0.00030684,3]
[367117110,1750662745341,-1478.36,0.00030684,3]
[367117111,1750662745351,-490.0,0.00030684,3]
[367117112,1750662745360,-490.0,0.00030684,3]
[367117113,1750662745370,-1376.6,0.00030684,3]
[367117114,1750662745379,-490.0,0.00030684,3]
[367117115,1750662745390,-889.62,0.00030684,3]
[367117116,1750662745400,-490.0,0.00030684,3]
[367117117,1750662745409,-1155.19,0.00030684,3]
[367117118,1750662745418,-490.0,0.00030684,3]
[367117119,1750662745427,-495.01,0.00030684,3]
[367117120,1750662745436,-344.12226164,0.00030684,3]
[367117121,1750662745446,-668.52,0.00030684,3]
[367117122,1750662745455,-698.01,0.00030684,3]
[367117123,1750662745464,-586.16,0.00030684,3]
[367117124,1750662745474,-490.0,0.00030684,3]
[367117125,1750662745483,-490.0,0.00030684,3]
[367117126,1750662745493,-644.39,0.00030684,3]
[367117127,1750662745502,-617.7,0.00030684,3]
[367117128,1750662745511,-826.8,0.00030684,3]
[367117129,1750662745521,-490.0,0.00030684,3]
[367117130,1750662745535,-490.0,0.00030684,3]
[367117131,1750662745547,-490.0,0.00030684,3]
[367117132,1750662745558,-626.46,0.00030684,3]
[367117133,1750662745567,-841.55,0.00030684,3]
[367117134,1750662745576,-625.27,0.00030684,3]